bitfinex-derivatives/quotes_ETHF0:USTF0_20260214
["timestamp","ask_amount","ask_price","bid_price","bid_amount"]
[1771058888484,6.74835557,2080.2,2079.1,6.67042311]
[1771058890186,6.74835557,2080.2,2079.5,0.24057]
[1771058890782,6.74835557,2080.2,2079.1,6.67042311]
[1771058891188,6.74835557,2080.2,2079.5,0.24057]
[1771058892190,6.74835557,2080.2,2079.5,6.91099311]
[1771058895698,6.35365311,2080.4,2079.5,6.91099311]
[1771058896793,6.35365311,2080.4,2079.5,0.24057]
[1771058897195,6.35365311,2080.4,2079.5,6.91099311]
[1771058898998,6.35365311,2080.4,2079.8,6.67042311]
[1771058899898,40.80546463,2080.5,2080.0,6.67042311]
[1771058900098,40.80546463,2080.5,2079.9,6.91094311]
[1771058900292,47.04613288,2080.5,2079.9,6.91094311]
[1771058900893,40.80546463,2080.5,2079.9,6.91094311]
[1771058901393,0.00546463,2080.5,2079.9,6.91094311]
[1771058901593,4.63e-06,2080.5,2079.9,6.91094311]
[1771058901790,6.25325603,2080.9,2079.9,6.91094311]
[1771058901995,40.8,2080.7,2079.9,6.91094311]
[1771058902806,40.80619333,2080.7,2079.9,6.91094311]
[1771058903195,0.00619333,2080.7,2079.9,6.91094311]
[1771058903390,0.01619333,2080.7,2079.9,6.91094311]
[1771058903795,40.81619333,2080.7,2079.9,6.91094311]
[1771058904300,47.08212093,2080.7,2079.9,6.91094311]
[1771058905300,0.01619333,2080.7,2079.9,6.91094311]
[1771058905499,3.33e-06,2080.7,2080.2,6.91091311]
[1771058905693,3.2887515,2082.6,2081.4,12.58315311]
[1771058905896,3.2887515,2082.6,2081.4,6.67042311]
[1771058906096,4.16168692,2082.8,2081.5,7.42114314]
[1771058906097,6.12365795,2082.5,2081.5,7.42114314]
[1771058906298,6.74835557,2082.3,2081.6,7.42114314]
[1771058906499,6.75390532,2082.3,2081.7,7.42114314]
[1771058906697,6.75390532,2082.3,2081.6,0.00618501]
[1771058906698,6.75390532,2082.3,2081.8,7.42114314]
[1771058906897,6.75390532,2082.3,2081.6,0.00618501]
[1771058907198,6.75390532,2082.3,2081.8,6.67042311]
[1771058907404,6.75390532,2082.3,2081.7,0.24032]
[1771058907803,6.75390532,2082.3,2081.7,6.91074311]
[1771058908500,6.75390532,2082.3,2081.6,0.00618501]
[1771058909201,6.75390532,2082.3,2081.6,6.67660812]
[1771058909401,6.75390532,2082.3,2081.6,0.00618501]
[1771058909803,6.75390532,2082.3,2081.2,6.67042311]
[1771058910202,6.75390532,2082.3,2081.3,6.91078311]
[1771058910708,6.75390532,2082.3,2081.3,0.24036]
[1771058911005,6.75390532,2082.3,2081.3,0.24649938]
[1771058911307,7.01036963,2082.1,2081.3,0.24649938]
[1771058911521,7.01036963,2082.0,2081.0,6.87844257]
[1771058911801,7.01036963,2082.0,2080.8,6.87844257]
[1771058912106,6.38551096,2082.0,2080.8,6.87844257]
[1771058912608,7.01036963,2081.7,2080.8,0.00477294]
[1771058912905,7.01036963,2081.5,2080.8,0.00477294]
[1771058913105,7.01036963,2081.5,2080.4,6.87844257]
[1771058913306,7.01036963,2081.4,2080.4,6.87844257]
[1771058913496,7.01036963,2081.4,2080.7,0.24043]
[1771058913701,7.01036963,2081.4,2080.7,7.11887257]
[1771058914202,7.01036963,2081.4,2080.7,7.12352627]
[1771058914605,7.01036963,2081.6,2080.7,7.12352627]
[1771058916099,6.54168033,2081.6,2080.7,7.12352627]
[1771058918307,6.54168033,2081.6,2080.9,6.87844257]
[1771058918510,7.01036963,2081.8,2081.1,6.87844257]
[1771058918807,7.01036963,2081.8,2081.3,6.87844257]
[1771058919111,7.01036963,2082.0,2081.4,0.70990208]
[1771058919407,7.01036963,2082.0,2081.2,0.24037]
[1771058919599,7.01036963,2082.0,2081.3,6.87844257]
[1771058921010,6.6979515,2082.0,2081.3,6.87844257]
[1771058922408,6.89471946,2082.1,2081.4,0.24035]
[1771058922808,6.89471946,2082.1,2081.4,7.26581538]
[1771058923010,40.8,2082.2,2081.4,7.26581538]
[1771058923206,0.00554975,2082.3,2081.7,7.02546538]
[1771058923605,6.86960283,2082.7,2082.0,0.24028]
[1771058923806,6.86960283,2082.7,2082.0,7.26574538]
[1771058924309,40.8,2082.6,2082.0,7.26574538]
[1771058924613,0.00175494,2082.6,2082.0,7.26574538]
[1771058925110,6.66228862,2082.6,2082.0,0.24028]
[1771058925410,6.66228862,2082.6,2082.1,7.02546538]
[1771058925607,6.66228862,2082.6,2082.0,0.24028]
[1771058926110,6.66228862,2082.6,2082.0,7.26574538]
[1771058926313,4.813,2084.6,2083.5,7.02546538]
[1771058926504,7.26032285,2084.6,2083.5,7.02546538]
[1771058926701,7.26032285,2084.4,2083.5,7.02546538]
[1771058927312,0.0062198,2084.4,2083.5,7.03017777]
[1771058927514,7.26654265,2084.4,2083.5,7.03017777]
[1771058928408,7.26032285,2084.3,2083.5,0.00471239]
[1771058928610,7.26032285,2084.0,2082.8,7.02546538]
[1771058929612,7.26032285,2084.2,2083.2,7.02546538]
[1771058930304,11.42200977,2084.2,2083.1,0.24015]
[1771058930505,7.26032285,2084.1,2083.1,0.24015]
[1771058931110,7.26032285,2084.0,2082.9,7.02546538]
[1771058932204,7.26032285,2083.8,2082.9,7.02546538]
[1771058932710,7.26032285,2083.8,2082.8,0.00391925]
[1771058933209,7.26032285,2083.8,2082.8,7.02938463]
[1771058933909,7.26032285,2083.8,2082.8,0.00391925]
[1771058934207,7.26032285,2083.8,2082.8,7.02938463]
[1771058934609,11.42200977,2083.8,2082.9,0.24018]
[1771058934804,7.26032285,2083.7,2082.9,0.24018]
[1771058935311,7.26032285,2083.1,2082.2,7.26571538]
[1771058936209,7.26032285,2083.1,2082.2,0.24025]
[1771058936411,7.26032285,2082.8,2082.2,0.00339221]
[1771058936612,7.26655119,2082.8,2081.8,7.02546538]
[1771058936808,7.26655119,2082.8,2082.0,7.02546538]
[1771058937713,48.06032285,2082.7,2082.0,7.03127023]
[1771058938015,7.26032285,2082.6,2082.0,0.00580485]
[1771058939218,7.26032285,2082.6,2081.9,7.26575538]
[1771058939716,7.26032285,2082.6,2081.9,0.24029]
[1771058940107,7.26032285,2082.6,2081.9,7.27059491]
[1771058942221,7.26032285,2082.6,2081.9,0.24512953]
[1771058942713,7.26032285,2082.6,2081.9,7.51939057]
[1771058942919,0.00622834,2082.8,2081.9,7.51939057]
[1771058942920,7.24403912,2082.8,2081.9,7.51939057]
[1771058943420,40.8,2082.7,2081.9,7.51939057]
[1771058944023,7.23781078,2083.2,2081.9,7.51939057]
[1771058944717,7.23781078,2083.0,2081.9,7.51939057]
[1771058944924,44.96168692,2083.1,2081.9,0.00483953]
[1771058944925,7.23781078,2082.7,2081.9,0.00483953]
[1771058945125,7.23781078,2082.6,2081.3,7.51461104]
[1771058945722,4.16168692,2082.5,2081.3,7.51461104]
[1771058945924,7.23781078,2082.4,2081.3,7.51461104]
[1771058946123,7.23781078,2082.4,2081.3,7.51870034]
[1771058946920,7.23781078,2082.6,2081.3,7.51870034]
[1771058947119,7.23781078,2082.6,2081.5,7.51460104]
[1771058947323,0.0043571,2082.7,2082.1,7.27426104]
[1771058948220,40.8,2083.1,2082.0,0.24028]
[1771058948221,40.8,2083.1,2082.3,7.27426104]
[1771058948626,40.8,2083.1,2082.5,7.27426104]
[1771058948826,7.23781078,2083.7,2082.9,7.27426104]
[1771058949029,7.24217559,2083.7,2082.9,7.27809087]
[1771058949222,7.24404674,2083.5,2082.9,7.27809087]
[1771058949525,7.23781078,2083.5,2082.9,7.27809087]
[1771058949722,7.23781078,2083.4,2082.9,0.00382983]
[1771058950121,7.23781078,2083.4,2082.8,0.24019]
[1771058950122,7.23781078,2083.1,2082.8,0.24019]
[1771058950629,7.24404674,2083.1,2082.8,0.24019]
[1771058951024,7.23781078,2083.3,2082.8,7.51927939]
[1771058951225,7.23781078,2083.5,2082.8,7.51927939]
[1771058951729,7.24404674,2083.5,2082.8,7.51927939]
[1771058952628,40.8,2083.6,2082.8,7.51927939]
[1771058952928,0.01,2083.5,2082.8,7.51927939]
[1771058953429,0.0009726,2083.7,2083.4,7.27426104]
[1771058953627,19.93,2084.1,2083.4,7.27426104]
[1771058953931,40.8,2084.0,2083.6,7.27426104]
[1771058954526,40.8049887,2084.0,2083.6,7.27426104]
[1771058955327,0.0049887,2084.0,2083.6,7.27426104]
[1771058955923,7.23781078,2084.5,2083.8,7.27426104]
[1771058956129,0.00623596,2084.4,2083.8,7.27426104]
[1771058956325,40.8,2084.3,2083.8,7.27426104]
[1771058957133,0.00550391,2084.3,2083.8,7.27426104]
[1771058957431,7.24331469,2084.3,2083.7,7.51434104]
[1771058957636,40.8,2084.2,2083.7,7.51434104]
[1771058957833,0.00623596,2083.9,2083.3,7.27426104]
[1771058958038,48.03781078,2084.2,2083.3,7.27426104]
[1771058958239,7.23781078,2084.1,2083.3,7.27426104]
[1771058958839,7.23781078,2083.4,2082.8,0.00482835]
[1771058959345,7.23781078,2083.2,2082.8,0.00482835]
[1771058959944,0.00623596,2083.1,2082.8,0.00482835]
[1771058960141,7.23781078,2083.1,2082.8,0.00482835]
[1771058960340,7.23781078,2083.1,2082.5,7.51448104]
[1771058960341,7.23781078,2083.1,2082.3,7.27426104]
[1771058960540,7.23781078,2082.9,2082.0,7.27426104]
[1771058961046,7.23781078,2083.1,2082.2,7.27426104]
[1771058961243,7.23781078,2083.1,2082.2,7.27916825]
[1771058961440,7.23781078,2082.9,2082.2,7.27916825]
[1771058961747,7.23781078,2083.3,2082.4,7.27426104]
[1771058962337,7.23781078,2083.3,2082.3,0.24025]
[1771058962650,7.23781078,2083.0,2082.3,0.24025]
[1771058962940,5.96e-06,2082.8,2082.3,7.51451104]
[1771058963247,40.80558033,2082.8,2082.3,7.51451104]
[1771058963840,0.00558033,2082.8,2082.3,7.51451104]
[1771058964140,7.24339111,2082.8,2082.3,7.51451104]
[1771058964541,0.00558033,2082.8,2082.3,7.51451104]
[1771058964742,7.24339111,2082.8,2082.2,0.00490721]
[1771058966147,7.24339111,2082.8,2082.3,7.51451104]
[1771058966350,7.24339111,2082.8,2082.3,0.24025]
[1771058966848,7.24339111,2082.8,2082.2,7.27916825]
[1771058967552,0.00558033,2082.8,2082.2,7.51941825]
[1771058967956,7.24339111,2082.8,2082.2,0.24515721]
[1771058968559,0.00558033,2082.8,2082.2,7.51941825]
[1771058969353,7.23781078,2083.5,2082.2,7.51941825]
[1771058969554,40.8,2083.7,2082.7,7.27426104]
[1771058970054,7.23781078,2084.1,2082.9,7.27426104]
[1771058970352,7.24377037,2084.1,2082.9,7.27426104]
[1771058970547,40.8,2084.0,2082.9,7.27426104]
[1771058970753,48.03781078,2084.0,2082.9,7.27426104]
[1771058970953,7.23781078,2083.9,2083.1,7.27426104]
[1771058971149,7.23781078,2083.9,2082.4,7.10140178]
[1771058971753,7.23781078,2083.9,2082.6,7.10140178]
[1771058972851,7.23781078,2083.9,2082.5,0.24022]
[1771058973053,7.23781078,2083.9,2082.5,7.34162178]
[1771058973651,7.23781078,2083.9,2082.6,3.823]
[1771058973954,7.23781078,2083.9,2082.6,10.92440178]
[1771058974155,7.23781078,2083.9,2082.6,3.823]
[1771058974356,7.23781078,2083.9,2082.5,4.06322]
[1771058975254,7.23781078,2083.9,2082.6,7.10140178]
[1771058975759,7.30535033,2083.8,2082.5,4.06322]
[1771058975953,7.30535033,2083.8,2082.6,7.10140178]
[1771058976154,7.30535033,2083.6,2082.6,7.10140178]
[1771058976354,7.30535033,2083.5,2082.6,7.10140178]
[1771058976554,7.30535033,2083.5,2082.5,4.06322]
[1771058976555,7.30535033,2083.5,2082.7,7.34160178]
[1771058978959,7.30535033,2083.5,2082.7,0.2402]
[1771058979357,7.30535033,2083.5,2082.2,7.10630899]
[1771058979564,7.30535033,2083.5,2082.2,0.00490721]
[1771058979855,6.87283733,2083.0,2081.6,7.25613756]
[1771058980059,6.87283733,2082.8,2081.6,7.25613756]
[1771058980851,6.87283733,2082.8,2081.6,7.26102733]
[1771058981257,6.87283733,2082.8,2081.8,7.25613756]
[1771058981656,47.67283733,2082.7,2081.8,7.25613756]
[1771058981861,6.87283733,2082.6,2081.8,7.25613756]
[1771058982057,6.87642835,2082.6,2081.8,7.25613756]
[1771058982462,6.87642835,2082.6,2081.7,0.24032]
[1771058982660,6.87642835,2082.6,2081.7,7.49645756]
[1771058984865,6.87642835,2082.6,2081.7,0.24032]
[1771058985062,6.87642835,2082.6,2081.7,7.49645756]
[1771058985262,6.87642835,2082.6,2081.7,0.24032]
[1771058985859,6.87642835,2082.6,2081.2,7.25613756]
[1771058987061,6.87642835,2082.6,2081.2,7.2614089]
[1771058987465,6.87283733,2082.4,2081.2,7.2614089]
[1771058987857,6.87283733,2082.4,2081.2,0.00527134]
[1771058988064,6.87283733,2082.3,2081.2,0.00527134]
[1771058988263,6.87283733,2082.1,2080.8,7.25613756]
[1771058988463,6.87283733,2081.9,2080.8,7.25613756]
[1771058989064,6.87283733,2081.9,2080.6,7.25613756]
[1771058989367,6.87283733,2081.7,2080.0,7.25613756]
[1771058989770,6.87283733,2081.5,2080.0,7.25613756]
[1771058990370,6.87283733,2081.5,2080.0,7.26095495]
[1771058990664,6.87283733,2081.3,2080.0,7.26095495]
[1771058990870,4.813,2081.4,2080.0,7.26095495]
[1771058990871,6.87283733,2081.1,2080.0,0.00481739]
[1771058991060,6.87894699,2081.1,2080.0,0.00481739]
[1771058991569,6.87894699,2081.1,2080.1,7.25613756]
[1771058991965,6.87283733,2081.8,2080.5,7.25613756]
[1771058992265,6.87283733,2082.6,2081.4,7.49648756]
[1771058992466,6.87283733,2083.5,2081.7,7.25613756]
[1771058992668,6.87283733,2083.5,2082.4,7.25613756]
[1771058993066,47.67283733,2083.3,2082.4,7.2606536]
[1771058993270,6.87283733,2083.2,2082.4,7.2606536]
[1771058994662,6.87283733,2083.2,2082.4,0.00451604]
[1771058994867,6.87283733,2083.2,2081.7,7.25613756]
[1771058995763,6.87283733,2083.2,2081.7,7.26138684]
[1771058998469,40.8,2083.1,2081.7,7.26138684]
[1771058998668,6.87283733,2083.0,2081.7,7.26138684]
[1771058999374,6.87283733,2083.0,2081.9,7.25613756]
[1771059000372,6.87283733,2083.0,2081.7,7.26138684]
[1771059000574,6.87283733,2083.0,2081.7,7.50169684]
[1771059001166,6.87283733,2083.0,2081.7,0.00524928]
[1771059001569,6.68513108,2082.7,2081.1,7.22104448]
[1771059001769,6.68513108,2082.5,2081.1,6.98066448]
[1771059001976,6.68513108,2082.5,2080.6,6.98066448]
[1771059002171,6.68513108,2082.3,2080.6,6.98066448]
[1771059002772,6.68513108,2082.3,2080.6,6.98443021]
[1771059003374,4.15300342,2082.0,2080.6,6.98443021]
[1771059003571,6.68513108,2081.9,2080.6,0.00376573]
[1771059003875,6.68513108,2081.6,2080.1,6.98066448]
[1771059004075,6.68513108,2081.2,2080.1,6.98066448]
[1771059004976,6.68513108,2081.2,2080.3,6.98066448]
[1771059005972,6.68513108,2081.2,2080.1,0.00603465]
[1771059007478,6.68513108,2081.2,2080.1,6.98669913]
[1771059007774,6.68513108,2081.2,2080.1,0.00603465]
[1771059007979,6.92551108,2081.1,2079.7,6.98066448]
[1771059008377,6.92551108,2081.1,2079.1,6.98066448]
[1771059008588,6.68513108,2080.7,2079.1,6.98066448]
[1771059008776,6.68513108,2080.7,2079.3,6.98066448]
[1771059008977,6.68513108,2080.7,2079.3,6.9847653]
[1771059010377,6.68513108,2080.7,2079.3,0.00410082]
[1771059010574,6.68513108,2080.5,2079.3,0.00410082]
[1771059010776,6.68513108,2080.3,2079.3,0.00410082]
[1771059010978,6.68513108,2080.3,2078.7,6.98066448]
[1771059011280,6.68513108,2080.1,2078.7,6.98066448]
[1771059012183,6.68513108,2080.1,2078.7,6.98610017]
[1771059014984,6.68513108,2080.1,2079.1,6.98066448]
[1771059015184,6.68513108,2079.9,2079.1,6.98066448]
[1771059016486,6.68513108,2080.1,2079.1,6.98066448]
[1771059020292,47.48513108,2080.2,2079.1,6.98066448]
[1771059020495,6.68513108,2080.1,2079.1,6.98066448]
[1771059022193,47.48513108,2080.2,2079.3,6.98066448]
[1771059022496,6.68513108,2080.1,2079.3,6.98066448]
[1771059023694,6.68513108,2080.1,2079.2,0.2406]
[1771059024000,6.68513108,2080.1,2079.2,7.22126448]
[1771059024391,6.68513108,2080.1,2079.2,0.2406]
[1771059024794,6.68513108,2080.1,2079.2,7.22126448]
[1771059025789,6.68513108,2079.9,2079.2,7.22126448]
[1771059027396,6.68513108,2079.9,2078.8,6.98066448]
[1771059027804,6.68513108,2079.9,2078.7,6.98610017]
[1771059029102,40.8,2079.8,2078.7,6.98610017]
[1771059029298,6.68513108,2079.7,2078.7,6.98610017]
[1771059031808,6.68513108,2079.7,2078.9,6.49063469]
[1771059034216,6.58215248,2080.3,2079.5,6.49063469]
[1771059034410,12.02915248,2080.4,2079.5,6.49063469]
[1771059034715,40.8,2080.2,2079.5,6.49063469]
[1771059034909,40.8,2080.2,2079.7,6.49063469]
[1771059037020,0.00356976,2080.5,2079.9,6.49063469]
[1771059037215,6.58215248,2081.4,2080.1,6.49063469]
[1771059037417,6.58215248,2081.0,2080.1,6.49063469]
[1771059037610,47.38215248,2080.9,2080.1,6.49063469]
[1771059038214,47.38733625,2080.9,2080.1,6.49063469]
[1771059039119,6.58215248,2080.8,2079.5,6.49063469]
[1771059039318,6.58215248,2080.8,2079.7,6.49063469]
[1771059040026,40.80518377,2080.9,2080.2,0.24049]
[1771059040320,40.80518377,2080.9,2080.3,6.60109821]
[1771059041621,6.91108695,2080.8,2080.2,0.2454076]
[1771059041823,6.91108695,2080.8,2080.2,6.60601581]
[1771059042322,6.91108695,2080.8,2080.2,0.0049176]
[1771059043219,6.91108695,2080.8,2080.0,6.60109821]
[1771059043820,6.91108695,2080.8,2079.7,6.60109821]
[1771059044325,6.91108695,2080.8,2079.7,6.60491876]
[1771059053020,6.91108695,2080.8,2079.9,6.60109821]
[1771059054229,6.91108695,2080.8,2080.1,6.60109821]
[1771059056427,6.91108695,2080.8,2079.9,6.60109821]
[1771059060431,6.91108695,2080.8,2079.8,3.823]
[1771059060626,6.91108695,2079.9,2079.1,6.60109821]
[1771059060828,6.91108695,2079.9,2079.0,0.24062]
[1771059061032,6.91108695,2079.9,2078.5,6.5136988]
[1771059061329,6.91040245,2079.7,2078.5,6.5136988]
[1771059061731,6.91040245,2079.7,2078.5,6.51941745]
[1771059063028,6.91040245,2079.6,2078.5,6.51941745]
[1771059063429,6.91040245,2079.3,2078.5,0.00571865]
[1771059063726,6.91588016,2079.3,2078.5,6.51941745]
[1771059063927,6.91040245,2079.1,2078.5,0.00571865]
[1771059064435,6.91040245,2079.1,2078.3,6.5136988]
[1771059064731,6.91040245,2079.1,2078.1,6.5136988]
[1771059065528,6.91040245,2079.1,2078.1,6.51826682]
[1771059066430,4.16732958,2079.0,2078.1,6.51826682]
[1771059066635,6.91040245,2078.8,2078.1,6.51826682]
[1771059067536,6.91040245,2078.8,2078.1,0.00456802]
[1771059068239,6.91040245,2078.8,2077.3,4.16732958]
[1771059068240,6.91040245,2078.5,2077.3,3.2928138]
[1771059068532,6.91040245,2078.3,2077.3,3.2928138]
[1771059069133,6.91040245,2078.3,2077.3,3.29846773]
[1771059071837,6.91040245,2078.7,2077.7,3.58317676]
[1771059072036,6.91040245,2078.6,2077.7,3.58317676]
[1771059072334,6.91040245,2078.6,2077.9,3.57715622]
[1771059078034,18.29,2078.7,2078.1,3.57006261]
[1771059078239,17.78624,2078.7,2078.3,3.56329349]
[1771059079743,47.71040245,2078.9,2078.3,3.56329349]
[1771059080436,47.71040245,2078.9,2078.5,3.56365152]
[1771059080437,40.8,2078.9,2078.5,3.56365152]
[1771059081244,40.8,2078.9,2078.6,3.62938607]
[1771059081437,6.91040245,2078.8,2078.5,3.823]
[1771059081632,40.8,2078.9,2078.5,7.45238607]
[1771059081837,47.71040245,2078.9,2078.5,7.45238607]
[1771059082238,40.8,2078.9,2078.6,3.62427278]
[1771059082839,47.71040245,2078.9,2078.6,3.62427278]
[1771059083744,47.71040245,2078.9,2078.5,7.43784677]
[1771059085044,6.91040245,2078.8,2078.2,3.64117846]
[1771059087743,6.91040245,2078.8,2077.9,0.24075]
[1771059087943,6.91040245,2078.8,2077.5,6.5136988]
[1771059088151,6.91040245,2078.8,2077.4,0.24081]
[1771059088448,6.91040245,2078.8,2077.4,6.7545088]
[1771059090545,6.91040245,2078.8,2078.1,6.5136988]
[1771059091047,6.91040245,2078.8,2078.0,0.24074]
[1771059091247,6.91040245,2078.8,2078.0,7.44570028]
[1771059091446,6.91040245,2078.8,2077.3,0.00565393]
[1771059091447,6.91040245,2078.8,2077.8,7.20496028]
[1771059092050,6.91040245,2078.8,2077.3,0.00565393]
[1771059092051,6.91040245,2078.8,2078.0,7.20496028]
[1771059092943,6.91040245,2078.8,2077.9,7.44571028]
[1771059100355,40.8,2078.9,2077.9,7.44571028]
[1771059100557,47.83508834,2078.9,2077.9,7.44571028]
[1771059101858,7.03508834,2078.8,2077.9,7.44571028]
[1771059102759,7.04056605,2079.3,2078.6,7.26084499]
[1771059103751,40.8,2079.2,2078.8,7.26084499]
[1771059103961,0.00547771,2079.3,2078.8,7.2646877]
[1771059104362,7.04056605,2079.3,2078.8,7.2646877]
[1771059105163,7.03508834,2079.9,2079.0,7.26084499]
[1771059105460,7.03508834,2079.9,2079.2,7.26084499]
[1771059105968,40.8,2079.8,2079.2,7.26084499]
[1771059106163,40.80434259,2079.8,2079.2,7.26084499]
[1771059108167,7.03508834,2079.7,2079.2,7.26084499]
[1771059108771,0.01,2079.9,2079.6,7.26084499]
[1771059108972,1e-05,2079.9,2079.6,7.26084499]
[1771059109862,0.00529218,2079.9,2079.6,7.26084499]
[1771059110868,7.04038052,2079.9,2078.9,0.24063]
[1771059111072,7.04038052,2079.9,2078.8,3.82684271]
[1771059111073,7.04038052,2079.9,2079.2,7.26084499]
[1771059113966,0.00529218,2079.9,2079.2,7.26084499]
[1771059114174,7.04038052,2079.9,2079.2,7.26084499]
[1771059114775,7.03508834,2079.7,2079.2,7.26084499]
[1771059116277,40.8,2079.8,2079.2,7.26084499]
[1771059116971,7.03508834,2079.7,2079.2,7.26084499]
[1771059120279,40.8,2079.8,2079.2,7.26084499]
[1771059120475,40.8,2079.8,2079.3,0.24059]
[1771059120682,40.8,2079.8,2079.4,7.26084499]
[1771059120875,47.83508834,2079.8,2079.4,7.26084499]
[1771059121576,40.8,2079.8,2079.4,7.26084499]
[1771059121978,6.6946235,2079.7,2079.3,7.19932877]
[1771059122183,6.6946235,2079.7,2079.3,0.24059]
[1771059122375,6.6946235,2079.7,2079.3,7.19932877]
[1771059122680,6.6946235,2079.7,2079.3,0.24059]
[1771059123078,6.6946235,2079.7,2079.3,7.19932877]
[1771059124783,47.4946235,2079.8,2079.3,7.19932877]
[1771059124985,40.8,2079.8,2079.3,7.19932877]
[1771059125779,0.00529218,2079.9,2079.3,7.19932877]
[1771059126183,6.69991568,2079.9,2079.3,7.19932877]
[1771059126379,6.69991568,2079.9,2079.4,10.78173877]
[1771059126579,6.69991568,2079.9,2079.5,6.95873877]
[1771059126780,40.8,2079.8,2079.5,6.95873877]
[1771059127176,2.18e-06,2079.9,2079.7,6.95873877]
[1771059127377,6.69462568,2079.9,2079.6,0.24056]
[1771059127785,2.18e-06,2079.9,2079.6,7.19929877]
[1771059128180,2.18e-06,2079.9,2078.8,9.85801988]
[1771059128181,6.69462568,2079.9,2079.0,6.95873877]
[1771059128386,6.69462568,2079.9,2079.1,7.19934877]
[1771059131991,2.18e-06,2079.9,2079.1,7.19934877]
[1771059132491,2.18e-06,2079.9,2079.8,6.95873877]
[1771059132690,6.6946235,2080.7,2079.8,6.95873877]
[1771059132995,6.6946235,2080.5,2079.8,6.95873877]
[1771059133588,6.69951319,2080.5,2079.7,0.24055]
[1771059134193,6.69951319,2080.5,2079.7,7.19928877]
[1771059137798,6.69951319,2080.5,2079.7,0.24055]
[1771059138197,6.69951319,2080.5,2079.7,7.19928877]
[1771059138398,6.6946235,2080.3,2079.7,7.19928877]
[1771059140398,40.8,2080.4,2079.7,7.19928877]
[1771059140598,47.4946235,2080.4,2079.7,7.19928877]
[1771059141099,6.6946235,2080.3,2079.7,0.24055]
[1771059143403,6.6946235,2080.3,2079.7,7.19928877]
[1771059146403,6.6946235,2080.3,2079.7,0.24055]
[1771059146603,6.6946235,2080.3,2079.7,7.19928877]
[1771059146802,6.6946235,2080.3,2079.7,11.02228877]
[1771059147005,6.6946235,2080.3,2079.8,6.95873877]
[1771059150403,6.6946235,2080.3,2079.7,11.02228877]
[1771059151006,6.6946235,2080.3,2079.7,4.06355]
[1771059151506,6.6946235,2080.3,2079.8,6.89414641]
[1771059151714,6.6946235,2080.3,2079.7,10.95769641]
[1771059152708,6.6946235,2080.3,2079.8,3.823]
[1771059153707,6.6946235,2080.3,2079.7,6.5719367]
[1771059154207,19.956,2080.3,2079.3,6.89414641]
[1771059154409,7.09923692,2080.2,2079.4,9.43414641]
[1771059155511,7.09923692,2080.2,2079.5,6.89414641]
[1771059159515,7.09923692,2080.2,2079.7,6.89414641]
[1771059161216,7.09923692,2080.2,2079.4,7.08394889]
[1771059161711,7.09923692,2080.2,2079.6,7.08394889]
[1771059162316,19.956,2080.3,2079.6,7.08394889]
[1771059162617,27.04809069,2080.3,2079.6,7.08394889]
[1771059162813,7.09209069,2080.2,2079.6,7.08394889]
[1771059163311,7.09209069,2080.2,2079.5,7.32451889]
[1771059166810,27.04809069,2080.3,2079.5,7.32451889]
[1771059167012,19.956,2080.3,2079.8,7.08394889]
[1771059168314,27.04809069,2080.3,2079.8,7.08394889]
[1771059168514,19.956,2080.3,2079.8,7.08394889]
[1771059170918,40.8,2080.4,2080.0,7.08394889]
[1771059171514,0.00488969,2080.5,2080.0,7.08394889]
[1771059171820,27.04709069,2080.7,2080.0,7.08394889]
[1771059172123,7.09209069,2080.6,2080.0,7.08394889]
[1771059172521,47.89209069,2080.5,2080.0,7.08394889]
[1771059172818,47.89643454,2080.5,2080.0,7.08394889]
[1771059174421,0.00434385,2080.5,2080.0,7.08394889]
[1771059174624,1e-08,2080.5,2080.0,7.08394889]
[1771059174817,1e-08,2080.5,2080.2,7.08394889]
[1771059176022,40.29226001,2080.6,2080.2,7.08394889]
[1771059176226,27.04709069,2080.7,2080.3,7.08394889]
[1771059176420,19.955,2080.7,2080.3,7.08394889]
[1771059176922,7.09209069,2080.9,2080.4,7.08394889]
[1771059177124,40.8,2080.8,2080.4,7.09000803]
[1771059177528,47.89209069,2080.8,2080.4,7.09000803]
[1771059180527,0.00412587,2080.9,2080.6,7.08394889]
[1771059180727,7.09621656,2080.9,2080.5,0.24045]
[1771059180926,7.09621656,2080.9,2080.5,7.32439889]
[1771059181123,7.09621656,2080.9,2080.4,0.00605914]
[1771059181325,7.09621656,2080.9,2080.3,2.54]
[1771059181529,7.20063103,2080.7,2079.9,0.24051]
[1771059181722,7.20063103,2080.7,2079.9,6.90926785]
[1771059182525,40.8,2080.8,2080.4,6.66875785]
[1771059183225,48.00063103,2080.8,2080.4,6.66875785]
[1771059183425,7.20063103,2080.7,2080.3,6.90922785]
[1771059183627,7.20063103,2080.7,2080.3,0.24047]
[1771059184130,7.20063103,2080.7,2080.0,6.66875785]
[1771059185128,7.20063103,2080.7,2080.3,0.24047]
[1771059188232,7.20063103,2080.7,2080.0,6.66875785]
[1771059188423,7.20063103,2080.7,2079.9,6.67293445]
[1771059190633,7.20063103,2080.7,2080.1,6.66875785]
[1771059191629,7.20063103,2080.7,2080.3,6.66875785]
[1771059193133,7.20063103,2080.7,2080.2,6.90924785]
[1771059197330,7.20063103,2080.7,2080.2,0.24049]
[1771059197830,7.20063103,2080.7,2080.2,6.90924785]
[1771059198934,7.20063103,2080.7,2080.2,0.24049]
[1771059199136,7.20063103,2080.5,2079.9,0.0041766]
[1771059199325,7.20063103,2080.3,2079.9,6.67293445]
[1771059200238,2.88925421,2080.6,2079.9,6.67293445]
[1771059200433,7.20063103,2080.5,2079.9,6.67293445]
[1771059201138,7.20063103,2080.5,2080.0,0.24051]
[1771059201437,7.20063103,2080.5,2080.1,6.66875785]
[1771059201841,7.20063103,2080.7,2080.1,6.66875785]
[1771059202638,7.20063103,2080.7,2080.2,6.90924785]
[1771059203531,48.00063103,2080.8,2080.2,6.90924785]
[1771059203741,7.20063103,2080.7,2080.2,6.90924785]
[1771059204838,24.73163103,2081.1,2080.7,6.66875785]
[1771059205036,17.531,2081.1,2080.7,6.66875785]
[1771059205237,40.8,2081.0,2080.7,6.66875785]
[1771059205640,24.73163103,2081.1,2080.7,6.66875785]
[1771059205838,24.73662102,2081.1,2080.7,6.66875785]
[1771059206534,7.20562102,2081.1,2080.7,6.66875785]
[1771059207331,10.186,2081.8,2080.9,6.66875785]
[1771059207332,7.20063103,2081.3,2080.9,6.66875785]
[1771059207534,6.9642869,2081.3,2080.9,6.66875785]
[1771059207935,7.20063103,2081.0,2080.6,0.24044]
[1771059208237,7.20063103,2081.0,2080.3,6.66875785]
[1771059208546,7.20063103,2080.8,2080.1,9.55801206]
[1771059208848,7.20063103,2080.8,2080.2,6.66875785]
[1771059209738,40.8,2080.9,2080.2,6.66875785]
[1771059209939,48.00063103,2080.9,2080.4,6.66875785]
[1771059210539,7.20063103,2080.8,2080.4,6.66875785]
[1771059212143,40.8,2080.9,2080.6,7.1161637]
[1771059212341,47.94029888,2080.9,2080.6,7.1161637]